bitfinex/quotes_SOLUSD_20251118
["timestamp","ask_amount","ask_price","bid_price","bid_amount"]
[1763425754846,18.12096,130.69,130.61,10.46882769]
[1763425755150,6.01971735,130.63,130.61,10.46882769]
[1763425755467,6.01971735,130.64,130.63,9.78882769]
[1763425756032,6.01971735,130.64,130.63,19.57765538]
[1763425758048,6.01971735,130.64,130.63,20.25765538]
[1763425758349,6.01971735,130.66,130.63,28.84839475]
[1763425758550,0.65,130.68,130.64,5.27]
[1763425758740,0.65,130.68,130.65,9.78882769]
[1763425758937,0.65,130.68,130.65,18.12096]
[1763425759248,0.65,130.68,130.66,9.78882769]
[1763425759452,102.7,130.67,130.66,9.78882769]
[1763425759958,127.49067735,130.67,130.66,9.78882769]
[1763425761762,24.79067735,130.67,130.66,9.78882769]
[1763425767639,6.66971735,130.67,130.62,18.37956706]
[1763425767943,6.01971735,130.63,130.62,18.37956706]
[1763425768449,6.01971735,130.63,130.62,33.52295719]
[1763425768839,6.01971735,130.64,130.62,46.43435119]
[1763425769040,6.01971735,130.64,130.63,10.47882769]
[1763425769238,6.01971735,130.64,130.63,15.05882769]
[1763425769440,6.01971735,130.64,130.63,32.48978769]
[1763425770669,0.65,130.67,130.64,9.78882769]
[1763425770873,2.53016085,130.65,130.64,9.78882769]
[1763425771456,2.53016085,130.65,130.64,19.90947109]
[1763425772960,18.12096,130.66,130.64,20.59947109]
[1763425773163,20.65112085,130.66,130.65,19.07021626]
[1763425773366,20.65112085,130.66,130.65,10.47882769]
[1763425773576,20.65112085,130.66,130.65,29.54904395]
[1763425774463,20.65112085,130.66,130.65,28.85904395]
[1763425779471,20.65112085,130.66,130.65,29.54904395]
[1763425779677,20.65112085,130.66,130.65,28.85904395]
[1763425779979,21.30112085,130.66,130.65,37.45295955]
[1763425780185,24.65583988,130.66,130.65,37.45295955]
[1763425781169,24.65583988,130.66,130.65,28.85904395]
[1763425782361,25.34583988,130.66,130.65,8.59425558]
[1763425782673,25.34583988,130.66,130.62,9.78882769]
[1763425782891,20.65112085,130.63,130.62,9.78882769]
[1763425783482,21.34112085,130.63,130.62,9.78882769]
[1763425786184,20.65112085,130.63,130.62,9.78882769]
[1763425788992,18.12096,130.65,130.63,9.78882769]
[1763425789188,2.53016085,130.64,130.63,10.44882769]
[1763425789394,2.53016085,130.64,130.63,14.34882769]
[1763425790297,3.22016085,130.64,130.63,28.69765538]
[1763425790471,3.22016085,130.64,130.63,24.13765538]
[1763425790673,21.34112085,130.64,130.63,24.13765538]
[1763425793672,21.34112085,130.64,130.63,14.34882769]
[1763425793868,21.34112085,130.64,130.63,24.13765538]
[1763425795379,23.8712817,130.64,130.58,14.34882769]
[1763425795574,2.53016085,130.59,130.58,14.34882769]
[1763425795991,2.53016085,130.59,130.58,15.00882769]
[1763425796167,2.53016085,130.59,130.58,24.13765538]
[1763425796372,2.53016085,130.59,130.58,14.34882769]
[1763425796373,3.22016085,130.59,130.58,14.34882769]
[1763425796602,3.22016085,130.59,130.58,24.13765538]
[1763425799201,18.12096,130.6,130.58,24.13765538]
[1763425799378,2.53016085,130.59,130.58,24.13765538]
[1763425799577,2.53016085,130.59,130.58,9.78882769]
[1763425799898,18.12096,130.6,130.58,27.90978769]
[1763425800079,2.53016085,130.59,130.58,27.90978769]
[1763425800798,120.82096,130.63,130.59,9.78882769]
[1763425800999,2.53016085,130.61,130.6,10.44882769]
[1763425801300,2.53016085,130.61,130.57,4.56]
[1763425801497,10.1206434,130.62,130.61,9.78882769]
[1763425801995,10.8106434,130.62,130.61,9.78882769]
[1763425802486,10.8106434,130.62,130.6,18.12096]
[1763425802692,3.22016085,130.61,130.57,4.56]
[1763425803002,3.95745838,130.58,130.57,4.56]
[1763425803715,3.95745838,130.58,130.57,16.86885238]
[1763425804079,3.95745838,130.59,130.57,17.52885238]
[1763425804285,3.95745838,130.61,130.58,5.22]
[1763425804490,3.95745838,130.6,130.59,9.78882769]
[1763425804803,3.95745838,130.6,130.59,4.56]
[1763425805392,3.95745838,130.6,130.58,9.78882769]
[1763425805588,3.95745838,130.59,130.58,14.34882769]
[1763425806320,3.95745838,130.59,130.58,24.13765538]
[1763425808892,22.07841838,130.59,130.58,24.13765538]
[1763425809418,3.95745838,130.59,130.58,24.13765538]
[1763425810526,0.69,130.67,130.58,33.31511376]
[1763425810825,3.95745838,130.62,130.59,0.66]
[1763425811024,3.95745838,130.62,130.61,9.78882769]
[1763425811229,3.95745838,130.62,130.59,0.66]
[1763425811428,0.69,130.62,130.6,9.78882769]
[1763425811598,3.95745838,130.61,130.6,24.13765538]
[1763425812004,4.62745838,130.61,130.6,14.34882769]
[1763425812332,18.12096,130.59,130.56,15.06882769]
[1763425812622,3.95745838,130.62,130.56,32.60768007]
[1763425812826,0.67,130.63,130.6,9.78882769]
[1763425813015,3.95745838,130.61,130.6,18.38368979]
[1763425813213,106.65745838,130.61,130.6,18.38368979]
[1763425813429,106.65745838,130.61,130.6,36.76737958]
[1763425813625,107.32745838,130.61,130.59,8.5948621]
[1763425813818,18.12096,130.59,130.58,9.78882769]
[1763425814024,22.07841838,130.59,130.58,32.84181113]
[1763425814225,22.07841838,130.59,130.58,41.43667323]
[1763425814823,22.74841838,130.59,130.58,41.43667323]
[1763425815416,22.74841838,130.59,130.58,32.84181113]
[1763425815632,22.07841838,130.59,130.58,32.84181113]
[1763425816137,22.07841838,130.59,130.58,23.05298344]
[1763425816346,18.12096,130.58,130.57,8.5948621]
[1763425816516,18.12096,130.58,130.57,41.43612663]
[1763425816517,22.74841838,130.58,130.57,41.43612663]
[1763425817722,22.74841838,130.58,130.57,18.38314319]
[1763425818031,22.74841838,130.58,130.57,41.43789823]
[1763425818213,22.74841838,130.58,130.57,32.84358273]
[1763425818410,4.62745838,130.58,130.57,32.84358273]
[1763425818615,4.62745838,130.58,130.56,8.5943155]
[1763425818817,4.63745838,130.57,130.56,27.90978769]
[1763425819019,4.63745838,130.57,130.56,9.78882769]
[1763425824253,3.95745838,130.57,130.56,22.94314319]
[1763425824553,3.95745838,130.57,130.56,38.08003979]
[1763425824730,3.95745838,130.58,130.56,38.08003979]
[1763425824926,4.00471903,130.66,130.57,0.68]
[1763425825151,3.95745838,130.6,130.59,9.78882769]
[1763425825354,3.95745838,130.6,130.59,18.38463534]
[1763425825534,3.95745838,130.6,130.59,22.38957488]
[1763425826130,4.63745838,130.6,130.59,4.00471903]
[1763425826342,4.63745838,130.6,130.56,8.59602816]
[1763425826529,3.95745838,130.57,130.55,9.78882769]
[1763425826726,3.95745838,130.56,130.55,9.78882769]
[1763425826943,0.68,130.59,130.55,9.78882769]
[1763425827136,0.68,130.59,130.58,9.78882769]
[1763425827447,0.68,130.59,130.57,8.59935829]
[1763425827638,0.68,130.59,130.56,36.55957998]
[1763425827842,102.7,130.58,130.56,36.55957998]
[1763425828152,3.95745838,130.57,130.56,36.55957998]
[1763425828321,4.63745838,130.57,130.56,36.55957998]
[1763425828525,4.63745838,130.57,130.56,27.96022169]
[1763425830638,4.63745838,130.57,130.56,36.55957998]
[1763425830842,4.63745838,130.57,130.56,27.96022169]
[1763425831027,3.95745838,130.57,130.56,36.55957998]
[1763425831230,3.95745838,130.57,130.56,36.56161868]
[1763425831746,3.95745838,130.57,130.56,27.96022169]
[1763425831958,3.95745838,130.57,130.56,36.56198086]
[1763425833951,0.68,130.57,130.56,36.56198086]
[1763425834161,4.63745838,130.57,130.56,36.56198086]
[1763425839961,3.95745838,130.57,130.56,36.56198086]
[1763425840136,3.95745838,130.57,130.56,27.96022169]
[1763425840539,3.95745838,130.57,130.56,36.57540364]
[1763425840540,4.63745838,130.57,130.56,36.57540364]
[1763425841266,22.75841838,130.57,130.56,26.78657595]
[1763425841469,4.63745838,130.57,130.54,18.40400964]
[1763425841648,3.95745838,130.55,130.54,41.16242802]
[1763425842170,4.65745838,130.55,130.54,41.16242802]
[1763425842354,8.61491676,130.55,130.54,41.16242802]
[1763425844151,4.65745838,130.55,130.54,31.37360033]
[1763425844351,8.61491676,130.55,130.54,8.61518195]
[1763425844667,8.61491676,130.55,130.52,41.46762678]
[1763425844966,3.95745838,130.53,130.52,41.46762678]
[1763425845143,3.95745838,130.53,130.52,32.85244483]
[1763425845345,3.95745838,130.53,130.52,41.46195547]
[1763425845542,4.65745838,130.53,130.52,41.46195547]
[1763425846679,4.65745838,130.53,130.52,18.39833833]
[1763425847448,4.65745838,130.53,130.52,9.78882769]
[1763425847671,4.65745838,130.53,130.52,32.85244483]
[1763425847862,4.65745838,130.53,130.52,41.45959717]
[1763425848172,0.7,130.53,130.52,31.67076948]
[1763425848483,4.65745838,130.53,130.52,18.39512914]
[1763425849393,3.95745838,130.53,130.52,18.39512914]
[1763425849570,4.65745838,130.53,130.52,18.39512914]
[1763425849887,4.65745838,130.53,130.52,41.45874628]
[1763425852762,3.95745838,130.53,130.52,41.45874628]
[1763425853466,3.95745838,130.53,130.52,38.13244483]
[1763425853776,3.95745838,130.53,130.52,37.41244483]
[1763425854573,4.65745838,130.53,130.52,32.85244483]
[1763425854782,4.65745838,130.53,130.52,8.60361655]
[1763425855095,4.65745838,130.53,130.51,36.61340424]
[1763425855293,4.65745838,130.52,130.51,36.61340424]
[1763425855875,3.95745838,130.52,130.51,37.33340424]
[1763425856090,3.95745838,130.52,130.51,28.72978769]
[1763425856600,3.95745838,130.52,130.51,28.00978769]
[1763425857780,4.65745838,130.52,130.51,36.61671516]
[1763425857976,4.65745838,130.52,130.51,18.49575516]
[1763425858180,3.95745838,130.52,130.51,28.00978769]
[1763425858798,3.95745838,130.52,130.51,36.61855244]
[1763425859369,3.95745838,130.52,130.51,28.00978769]
[1763425859571,4.65745838,130.55,130.51,28.72978769]
[1763425859770,3.95745838,130.52,130.51,28.72978769]
[1763425859994,3.95745838,130.52,130.51,23.52022169]
[1763425860194,3.95745838,130.52,130.51,41.64118169]
[1763425860379,3.95745838,130.53,130.51,28.72978769]
[1763425860606,3.95745838,130.53,130.52,27.98119628]
[1763425860784,3.95745838,130.53,130.52,15.06882769]
[1763425861006,3.95745838,130.53,130.52,27.98119628]
[1763425861184,3.95745838,130.53,130.52,15.06882769]
[1763425862107,3.95745838,130.54,130.53,9.78882769]
[1763425862283,3.95745838,130.54,130.53,23.42278047]
[1763425862492,4.00781295,130.59,130.53,10.50882769]
[1763425862790,2.53296254,130.57,130.56,9.78882769]
[1763425863106,2.53296254,130.57,130.56,14.34882769]
[1763425863287,2.53296254,130.57,130.56,15.06882769]
[1763425863486,2.53296254,130.57,130.56,19.07664064]
[1763425867606,3.23296254,130.57,130.56,22.4033354]
[1763425867815,3.23296254,130.57,130.56,4.00781295]
[1763425868145,3.23296254,130.57,130.56,40.79885785]
[1763425868503,2.53296254,130.57,130.56,40.79885785]
[1763425868717,3.23296254,130.57,130.56,40.79885785]
[1763425869228,2.53296254,130.57,130.56,32.91216309]
[1763425869409,2.53296254,130.57,130.56,37.47216309]
[1763425870633,2.53296254,130.57,130.56,36.75216309]
[1763425872606,2.53296254,130.58,130.57,9.78882769]
[1763425872806,2.53296254,130.59,130.57,10.45882769]
[1763425873006,102.7,130.61,130.59,9.78882769]
[1763425873007,105.23296254,130.61,130.59,9.78882769]
[1763425873233,4.00703524,130.64,130.61,9.78882769]
[1763425873405,2.53296254,130.63,130.62,14.34882769]
[1763425873727,2.53296254,130.64,130.63,9.78882769]
[1763425873932,2.53296254,130.64,130.63,10.45882769]
[1763425874104,2.53296254,130.64,130.63,9.78882769]
[1763425874308,2.53296254,130.64,130.63,18.38246754]
[1763425874509,2.53296254,130.64,130.63,14.34882769]
[1763425874730,2.53296254,130.64,130.63,22.94246754]
[1763425875430,3.23296254,130.64,130.63,9.78882769]
[1763425877407,3.23296254,130.64,130.6,8.59363985]
[1763425877622,2.53296254,130.61,130.6,9.78882769]
[1763425877828,2.53296254,130.61,130.6,25.2361041]
[1763425878034,3.23296254,130.61,130.6,25.2361041]
[1763425878234,3.23296254,130.61,130.6,15.44727641]
[1763425878434,3.23296254,130.61,130.57,8.59363985]
[1763425878740,105.23296254,130.62,130.58,32.84003979]
[1763425878741,0.67,130.6,130.58,32.84003979]
[1763425879843,2.53296254,130.59,130.58,32.84003979]
[1763425881124,21.32392254,130.59,130.57,9.78882769]
[1763425881323,2.53296254,130.58,130.57,9.78882769]
[1763425881544,18.12096,130.57,130.56,23.05475504]
[1763425881736,3.20296254,130.58,130.57,9.78882769]
[1763425883731,3.20296254,130.58,130.56,23.05475504]
[1763425883935,3.20296254,130.58,130.55,8.59363985]
[1763425883936,3.20296254,130.57,130.55,9.78882769]
[1763425884130,2.53296254,130.56,130.54,23.05475504]
[1763425884329,2.53296254,130.55,130.54,32.84358273]
[1763425884540,2.53296254,130.55,130.54,9.78882769]
[1763425884718,2.53296254,130.55,130.54,27.90978769]
[1763425885536,2.53296254,130.55,130.54,36.50342754]
[1763425887145,2.53296254,130.55,130.54,9.78882769]
[1763425887146,105.90296254,130.55,130.54,9.78882769]
[1763425888925,105.90296254,130.55,130.54,10.47882769]
[1763425888926,102.7,130.55,130.54,10.47882769]
[1763425889120,105.23296254,130.55,130.54,9.78882769]
[1763425889347,105.23296254,130.55,130.54,41.43899445]
[1763425890237,105.90296254,130.55,130.54,41.43899445]
[1763425890437,105.90296254,130.55,130.54,32.8453546]
[1763425890641,105.90296254,130.55,130.54,9.78882769]
[1763425891351,108.43592508,130.55,130.53,23.06007148]
[1763425891658,105.23296254,130.55,130.54,9.78882769]
[1763425892032,105.90296254,130.55,130.54,9.78882769]
[1763425892231,105.90296254,130.55,130.53,9.78882769]
[1763425892547,0.67,130.54,130.53,9.78882769]
[1763425892747,3.20296254,130.54,130.53,9.78882769]
[1763425892930,18.12096,130.53,130.52,23.06007148]
[1763425893128,21.32392254,130.53,130.52,9.78882769]
[1763425893734,18.12096,130.52,130.51,18.22096]
[1763425893932,21.32392254,130.52,130.51,9.88882769]
[1763425894551,21.32392254,130.52,130.51,0.1]
[1763425898546,20.65392254,130.52,130.51,0.1]
[1763425898851,2.53296254,130.52,130.51,0.1]
[1763425899054,2.53296254,130.52,130.51,9.88882769]
[1763425899556,3.20296254,130.52,130.51,9.88882769]
[1763425899857,18.12096,130.54,130.51,0.1]
[1763425899858,0.67,130.53,130.51,0.1]
[1763425900047,2.53296254,130.52,130.51,28.00978769]
[1763425900358,2.53296254,130.52,130.51,9.88882769]
[1763425900537,3.20296254,130.52,130.51,0.1]
[1763425903663,21.32392254,130.52,130.49,1.93593088]
[1763425903970,105.23296254,130.5,130.49,1.93593088]
[1763425904333,105.91296254,130.5,130.49,1.93593088]
[1763425907443,108.44592508,130.5,130.46,9.78882769]
[1763425907637,2.53296254,130.47,130.46,9.78882769]
[1763425907836,2.53296254,130.47,130.46,10.48882769]
[1763425908257,2.53296254,130.47,130.46,28.60978769]
[1763425909754,2.53296254,130.48,130.46,28.60978769]
[1763425910064,102.7,130.49,130.47,10.48882769]
[1763425911094,2.53296254,130.48,130.47,10.48882769]
[1763425911549,2.53296254,130.48,130.47,20.97765538]
[1763425912046,2.53296254,130.48,130.47,10.48882769]
[1763425912253,2.53296254,130.48,130.47,20.27765538]
[1763425913052,103.38,130.49,130.48,9.78882769]
[1763425913360,105.91296254,130.49,130.48,9.78882769]
[1763425913553,105.23296254,130.49,130.48,9.78882769]
[1763425913753,105.23296254,130.49,130.46,9.78882769]
[1763425913959,105.23296254,130.49,130.48,10.48882769]
[1763425913960,102.7,130.49,130.48,10.48882769]
[1763425915261,105.23296254,130.49,130.48,10.48882769]
[1763425915844,105.23296254,130.49,130.48,20.97765538]
[1763425918560,105.23296254,130.49,130.48,20.27765538]
[1763425919161,105.23296254,130.49,130.48,20.97765538]
[1763425919546,105.23296254,130.49,130.48,20.27765538]
[1763425920975,105.91296254,130.49,130.48,20.27765538]
[1763425921552,105.91296254,130.49,130.48,9.78882769]
[1763425922075,105.91296254,130.49,130.47,20.27765538]
[1763425922076,3.21296254,130.49,130.47,20.27765538]
[1763425922259,3.21296254,130.48,130.45,9.78882769]
[1763425922452,2.53296254,130.46,130.45,9.78882769]
[1763425922657,2.53296254,130.46,130.44,9.78882769]
[1763425922845,106.66626567,130.48,130.45,13.15363985]
[1763425923041,3.96626567,130.46,130.45,9.78882769]
[1763425924361,121.50096,130.45,130.42,0.1]
[1763425924582,7.93253134,130.43,130.39,13.95363985]
[1763425924760,3.96626567,130.4,130.39,23.74246754]
[1763425924962,3.96626567,130.4,130.37,4.56]
[1763425925188,3.96626567,130.41,130.34,9.39363985]
[1763425925386,3.96626567,130.35,130.34,0.8]
[1763425925591,3.96626567,130.35,130.34,13.01431387]
[1763425925890,3.96626567,130.35,130.34,12.80314156]
[1763425926091,3.96626567,130.35,130.34,0.7]
[1763425926386,3.96626567,130.37,130.35,9.78882769]
[1763425926593,3.96626567,130.37,130.36,14.34882769]
[1763425926792,0.68,130.44,130.37,9.78882769]
[1763425926982,3.96626567,130.41,130.39,9.78882769]
[1763425927393,3.96626567,130.4,130.39,5.26]
[1763425927598,3.96626567,130.4,130.39,27.60873321]
[1763425927891,0.68,130.43,130.39,26.90873321]
[1763425928096,0.68,130.43,130.4,9.78882769]
[1763425928989,0.68,130.44,130.4,10.48882769]
[1763425929201,3.96626567,130.43,130.42,9.78882769]
[1763425929692,0.68,130.46,130.42,9.78882769]
[1763425929868,3.96626567,130.45,130.43,0.7]
[1763425930070,3.96626567,130.45,130.44,9.78882769]
[1763425930270,3.96626567,130.47,130.44,10.48882769]
[1763425930492,0.68,130.49,130.46,9.78882769]
[1763425930689,3.96626567,130.47,130.46,9.78882769]
[1763425930866,3.96626567,130.47,130.43,9.78882769]
[1763425931069,3.96626567,130.45,130.43,9.78882769]
[1763425931372,3.96626567,130.45,130.43,10.48882769]
[1763425931697,3.96626567,130.44,130.43,4.58]
[1763425931876,3.96626567,130.44,130.42,9.78882769]
[1763425932071,3.96626567,130.43,130.42,9.78882769]
[1763425932481,3.96626567,130.43,130.42,10.44882769]
[1763425932680,3.96626567,130.43,130.42,23.00873321]
[1763425933004,3.96626567,130.43,130.42,22.34873321]
[1763425933673,0.69,130.46,130.42,23.00873321]
[1763425934004,3.96626567,130.43,130.42,23.00873321]
[1763425934497,3.96626567,130.44,130.42,22.34873321]
[1763425935179,4.65626567,130.43,130.42,22.34873321]
[1763425935379,0.69,130.43,130.42,22.34873321]
[1763425935686,4.65626567,130.43,130.42,22.34873321]
[1763425936280,3.96626567,130.43,130.42,22.34873321]
[1763425936796,3.96626567,130.43,130.4,14.36882769]
[1763425936797,4.65626567,130.43,130.4,14.36882769]
[1763425937097,102.7,130.42,130.41,18.12096]
[1763425937307,106.66626567,130.42,130.41,18.12096]
[1763425937471,102.7,130.42,130.41,27.90978769]
[1763425937676,102.7,130.42,130.41,28.56978769]
[1763425938391,102.7,130.42,130.41,27.90978769]
[1763425939180,106.66626567,130.42,130.41,27.90978769]
[1763425940882,3.96626567,130.42,130.41,27.90978769]
[1763425941274,3.96626567,130.42,130.41,28.58978769]
[1763425941698,22.76722567,130.42,130.41,18.12096]
[1763425941998,26.73349134,130.42,130.38,9.78882769]
[1763425942198,3.96626567,130.39,130.38,27.90978769]
[1763425942400,3.96626567,130.39,130.36,13.15363985]
[1763425942604,3.96626567,130.37,130.36,13.83363985]
[1763425942809,3.96626567,130.37,130.36,41.06342754]
[1763425942976,3.96626567,130.37,130.36,27.90978769]
[1763425943178,0.68,130.38,130.37,9.78882769]
[1763425943393,3.96626567,130.38,130.37,9.78882769]
[1763425943585,18.12096,130.42,130.36,9.78882769]
[1763425943894,11.1839712,130.46,130.36,9.78882769]
[1763425943895,3.96626567,130.37,130.36,9.78882769]
[1763425944395,3.96626567,130.41,130.36,9.78882769]
[1763425944396,3.96626567,130.39,130.36,10.46882769]
[1763425944599,3.96626567,130.39,130.37,0.68]
[1763425945101,3.96626567,130.4,130.38,4.58]
[1763425945803,3.96626567,130.4,130.39,27.90978769]
[1763425946602,4.64626567,130.4,130.39,27.90978769]
[1763425947009,4.64626567,130.4,130.39,9.78882769]
[1763425951499,3.96626567,130.41,130.39,10.46882769]
[1763425951888,3.96626567,130.42,130.39,10.46882769]
[1763425952207,4.64626567,130.42,130.4,9.78882769]
[1763425952388,4.64626567,130.42,130.4,22.70096]
[1763425952903,3.96626567,130.41,130.4,32.48978769]
[1763425953110,3.96626567,130.42,130.41,9.78882769]
[1763425953617,4.64626567,130.42,130.4,4.58]
[1763425953926,3.96626567,130.41,130.39,14.36882769]
[1763425954096,3.96626567,130.41,130.39,9.78882769]
[1763425954423,4.64626567,130.4,130.39,14.36882769]
[1763425954614,4.64626567,130.4,130.39,9.78882769]
[1763425954824,4.64626567,130.4,130.39,27.34940723]
[1763425955611,4.64626567,130.4,130.39,9.78882769]
[1763425959145,4.64626567,130.4,130.37,9.78882769]
[1763425959304,3.96626567,130.38,130.37,32.87374169]
[1763425959491,124.78722567,130.38,130.35,8.59363985]
[1763425959693,3.96626567,130.36,130.34,31.68743916]
[1763425959894,26.05349134,130.35,130.32,8.59363985]
[1763425960100,3.96626567,130.34,130.28,0.68]
[1763425960323,3.96626567,130.3,130.28,23.78091248]
[1763425960703,0.68,130.32,130.28,23.78091248]
[1763425960907,3.96626567,130.3,130.29,9.78882769]
[1763425961634,18.12096,130.37,130.29,10.46882769]
[1763425961797,3.96626567,130.3,130.29,9.78882769]
[1763425962142,4.66626567,130.3,130.25,8.59363985]
[1763425962300,3.96626567,130.27,130.26,18.82096]
[1763425962502,3.96626567,130.27,130.21,9.29363985]
[1763425962503,0.7,130.26,130.21,0.7]
[1763425962731,3.96626567,130.22,130.21,0.7]
[1763425963104,18.12096,130.27,130.22,8.59363985]
[1763425963324,3.96626567,130.24,130.22,13.17363985]
[1763425963504,0.7,130.26,130.22,13.17363985]
[1763425963925,3.96626567,130.23,130.22,22.96246754]
[1763425964126,3.96626567,130.23,130.22,23.66246754]
[1763425964326,3.96626567,130.23,130.22,15.06882769]
[1763425964906,9.50023113,130.23,130.22,10.48882769]
[1763425965108,9.50023113,130.23,130.22,0.7]
[1763425965908,0.7,130.26,130.22,0.7]
[1763425966119,9.50023113,130.23,130.22,0.7]
[1763425968830,9.50023113,130.23,130.21,9.78882769]
[1763425969041,9.50023113,130.22,130.21,9.78882769]
[1763425969224,9.50023113,130.22,130.2,2.03593088]
[1763425969417,9.50023113,130.21,130.2,12.52475857]
[1763425970035,9.50023113,130.21,130.2,11.82475857]
[1763425970537,0.7,130.27,130.21,9.78882769]
[1763425970748,18.12096,130.28,130.21,10.48882769]
[1763425970919,0.7,130.27,130.23,9.78882769]
[1763425971125,9.50023113,130.24,130.23,10.48882769]
[1763425971331,9.50023113,130.24,130.23,0.7]
[1763425971716,9.50023113,130.24,130.22,10.48882769]
[1763425971917,9.50023113,130.23,130.2,2.73593088]
[1763425972217,9.50023113,130.21,130.2,29.94571857]
[1763425972435,9.50023113,130.21,130.2,11.82475857]
[1763425973613,9.50023113,130.21,130.2,12.52475857]
[1763425973944,9.50023113,130.21,130.2,22.0249897]
[1763425976541,9.50023113,130.21,130.2,11.82475857]
[1763425976838,9.50023113,130.21,130.2,12.52475857]
[1763425977242,9.50023113,130.22,130.21,9.78882769]
[1763425977569,9.50023113,130.22,130.21,10.48882769]
[1763425977939,0.7,130.26,130.21,28.60978769]
[1763425978141,9.50023113,130.22,130.21,28.60978769]
[1763425978744,9.50023113,130.22,130.21,10.48882769]
[1763425978943,9.50023113,130.23,130.21,28.60978769]
[1763425979150,9.50023113,130.24,130.23,9.78882769]
[1763425979662,9.50023113,130.26,130.23,10.48882769]
[1763425979865,9.50023113,130.28,130.25,9.78882769]
[1763425980162,9.50023113,130.29,130.27,9.78882769]
[1763425980361,0.7,130.37,130.29,32.89882769]
[1763425980659,0.7,130.37,130.31,9.78882769]
[1763425980660,9.50023113,130.32,130.31,9.78882769]
[1763425980964,9.50023113,130.32,130.31,21.28905882]
[1763425981156,9.50023113,130.32,130.31,21.98905882]
[1763425982548,18.82096,130.38,130.31,21.98905882]
[1763425982742,9.50023113,130.33,130.31,21.28905882]
[1763425982948,9.50023113,130.33,130.32,10.48882769]
[1763425983183,9.50023113,130.41,130.33,9.78882769]
[1763425983184,18.12096,130.38,130.33,9.78882769]
[1763425983354,9.50023113,130.34,130.33,9.78882769]
[1763425983535,9.50023113,130.34,130.32,9.78882769]
[1763425983865,9.50023113,130.35,130.32,9.78882769]
[1763425984463,9.50023113,130.33,130.32,9.78882769]
[1763425984685,9.50023113,130.33,130.28,9.78882769]
[1763425984857,6.05566339,130.31,130.29,11.50023113]
[1763425985172,6.05566339,130.3,130.29,21.28905882]
[1763425985353,6.05566339,130.3,130.29,9.78882769]
[1763425985664,6.75566339,130.3,130.29,9.78882769]
[1763425985846,6.05566339,130.3,130.29,9.78882769]
[1763425986049,6.05566339,130.3,130.27,18.12096]
[1763425986379,6.05566339,130.29,130.28,9.78882769]
[1763425986865,6.05566339,130.3,130.28,9.78882769]
[1763425987172,6.05566339,130.29,130.28,9.78882769]
[1763425987682,6.05566339,130.3,130.28,0.7]
[1763425987970,6.05566339,130.3,130.29,9.78882769]
[1763425988341,6.05566339,130.3,130.28,10.48882769]
[1763425988544,6.05566339,130.31,130.28,10.48882769]
[1763425988842,6.05566339,130.32,130.29,0.7]
[1763425989044,6.05566339,130.3,130.28,9.78882769]
[1763425989346,6.75566339,130.29,130.24,0.7]
[1763425989657,18.82096,130.31,130.25,9.78882769]
[1763425989963,6.05566339,130.28,130.25,9.78882769]
[1763425990143,6.05566339,130.28,130.25,0.7]
[1763425990337,6.05566339,130.28,130.27,9.78882769]
[1763425990553,6.05566339,130.32,130.27,9.78882769]
[1763425990554,0.7,130.32,130.27,9.78882769]
[1763425990864,6.05566339,130.3,130.25,14.36882769]
[1763425991055,6.05566339,130.3,130.29,9.78882769]
[1763425991260,0.7,130.35,130.29,9.78882769]
[1763425991570,6.05566339,130.32,130.31,9.78882769]
[1763425991747,0.7,130.35,130.31,9.78882769]
[1763425991946,6.05566339,130.32,130.31,9.78882769]
[1763425992163,6.05566339,130.33,130.31,9.78882769]
[1763425992553,6.05566339,130.33,130.28,6.05566339]
[1763425992554,6.75566339,130.32,130.28,9.78882769]
[1763425992746,6.05566339,130.29,130.28,9.78882769]
[1763425993066,6.05566339,130.29,130.26,10.45882769]
[1763425993363,6.05566339,130.3,130.26,10.45882769]
[1763425993664,6.05566339,130.31,130.28,9.78882769]
[1763425993843,6.05566339,130.32,130.28,9.78882769]
[1763425994044,6.05566339,130.31,130.28,10.45882769]
[1763425994244,6.05566339,130.31,130.29,23.78]
[1763425994469,6.05566339,130.31,130.29,0.67]
[1763425994647,6.05566339,130.32,130.29,0.67]
[1763425995063,6.05566339,130.32,130.28,9.78882769]
[1763425995263,6.05566339,130.31,130.28,10.45882769]
[1763425995587,18.82096,130.33,130.29,0.67]
[1763425995871,24.17662339,130.4,130.3,9.78882769]
[1763425995872,6.05566339,130.34,130.3,9.78882769]
[1763425996364,6.05566339,130.34,130.31,9.78882769]
[1763425996585,6.05566339,130.34,130.31,0.67]
[1763425996869,6.05566339,130.35,130.31,0.67]
[1763425997367,6.75566339,130.35,130.31,0.67]
[1763425999084,6.05566339,130.35,130.31,0.67]
[1763425999375,6.05566339,130.34,130.3,9.78882769]
[1763425999552,6.05566339,130.34,130.29,10.63566339]
[1763425999553,6.05566339,130.33,130.29,9.78882769]
[1763425999760,6.77566339,130.33,130.29,10.44882769]